{"text_format":"1","workbook":"xlsx","n_sheets":2,"sheets":["البيانات","التقرير"],"not_rendered":{"charts":0,"images":1,"macros":1,"external_links":0,"defined_names":1,"comments":0,"pivot_tables":0},"unopened":[],"bounds":{"document_bytes":16777216,"sheet_cells":100000,"rows_first":2000,"rows_last":500,"rows_between":2000,"halvings":0,"cell_chars":16384,"cell_head_chars":4096},"cells_cut":0,"cells_raw":0,"read":"whole","date_system":"1900"}

{"sheet":"البيانات","index":0,"n_rows":61,"n_cols":33,"rows_kept":61,"cut":false,"hidden":false,"merged":[[11,4,11,6],[0,0,0,36],[2,9,2,12],[2,13,2,19],[2,20,2,26],[2,27,2,33],[5,4,5,33],[6,4,6,6],[7,4,7,6],[8,4,8,6],[9,4,9,6],[10,4,10,6],[23,4,23,6],[12,4,12,6],[13,4,13,6],[14,4,14,6],[15,4,15,6],[16,4,16,6],[17,4,17,6],[18,4,18,33],[19,4,19,6],[20,4,20,6],[21,4,21,6],[22,4,22,6],[35,4,35,6],[24,4,24,6],[25,4,25,6],[26,4,26,6],[27,4,27,6],[28,4,28,6],[29,4,29,6],[30,4,30,33],[31,4,31,6],[32,4,32,6],[33,4,33,6],[34,4,34,6],[47,4,47,6],[36,4,36,6],[37,4,37,6],[38,4,38,6],[39,4,39,6],[40,4,40,6],[41,4,41,6],[42,4,42,33],[43,4,43,6],[44,4,44,6],[45,4,45,6],[46,4,46,6],[59,4,59,6],[48,4,48,6],[49,4,49,6],[50,4,50,6],[51,4,51,33],[52,4,52,6],[53,4,53,6],[54,4,54,6],[55,4,55,6],[56,4,56,6],[57,4,57,6],[58,4,58,33],[60,4,60,6],[66,5,66,6],[66,9,66,16],[66,25,66,34],[68,5,68,6],[68,9,68,16],[68,25,68,34]]}
["الجدول الزمني للاعمال المتبقية "]
[]
[null,null,"اوفيسنا",null,null,null,null,"start","finnish","الاسبوع الاول",null,null,null,"الاسبوع الثاني",null,null,null,null,null,null,"الاسبوع الثالث",null,null,null,null,null,null,"الاسبوع الرابع"]
[null,null,null,null,null,null,null,"2019-09-03","2019-09-30","2019-09-07","2019-09-08","2019-09-09","2019-09-10","2019-09-11","2019-09-12","2019-09-13","2019-09-14","2019-09-15","2019-09-16","2019-09-17","2019-09-18","2019-09-19","2019-09-20","2019-09-21","2019-09-22","2019-09-23","2019-09-24","2019-09-25","2019-09-26","2019-09-27","2019-09-28","2019-09-29","2019-09-30"]
[null,null,null,"المبنى الاداري"]
[null,null,null,null,"الدور الأرضي"]
[null,null,"1_1",1,"مرمات محارة",null,null,{"$f":"H20+3","v":"2019-09-13"},{"$f":"I20+3","v":"2019-09-16"},{"$f":"AND(INDIRECT(\"r4c\"&COLUMN(),FALSE)>=INDIRECT(\"r\"&ROW()&\"c8\",FALSE),INDIRECT(\"r4c\"&COLUMN(),FALSE)<=INDIRECT(\"r\"&ROW()&\"c9\",FALSE))","v":false},false,false,false,false,false,true,true,true,true,false,false,false,false,false,false,{"$f":"AND(INDIRECT(\"r4c\"&COLUMN(),FALSE)>=INDIRECT(\"r\"&ROW()&\"c8\",FALSE),INDIRECT(\"r4c\"&COLUMN(),FALSE)<=INDIRECT(\"r\"&ROW()&\"c9\",FALSE))","v":false},false,false,false,false,false,false,false]
[null,null,"1_2",2,"تقفيل ملاحظات اسقف معلقة",null,null,{"$f":"H21+3","v":"2019-09-15"},"2019-09-19",false,false,false,false,false,false,false,false,true,true,true,true,true,false,false,false,false,false,false,false,false,false,false,false]
[null,null,"1_3",3,"تنفيذ فواصل التمدد",null,null,"2019-09-12","2019-09-15",false,false,false,false,false,true,true,true,true,false,false,false,false,false,false,false,false,false,false,false,false,false,false,false]
[null,null,"1_4",4,"مرمات دهانات",null,null,"2019-09-16","2019-09-21",false,false,false,false,false,false,false,false,false,true,true,true,true,true,true,false,false,false,false,false,false,false,false,false]
[null,null,"1_5",5,"تشطيب جرانيت",null,null,"2019-09-18","2019-09-22",false,false,false,false,false,false,false,false,false,false,false,true,true,true,true,true,false,false,false,false,false,false,false,false]
[null,null,"1_6",6,"تركيب الصدادات",null,null,"2019-09-23","2019-09-24",false,false,false,false,false,false,false,false,false,false,false,false,false,false,false,false,true,true,false,false,false,false,false,false]
[null,null,"1_7",6,"تركيب بلسقالات الفتحات",null,null,"2019-09-21","2019-09-23",false,false,false,false,false,false,false,false,false,false,false,false,false,false,true,true,true,false,false,false,false,false,false,false]
[null,null,"1_8",6,"دهانات الابواب والمشربيات",null,null,"2019-09-22","2019-09-26",false,false,false,false,false,false,false,false,false,false,false,false,false,false,false,true,true,true,true,true,false,false,false,false]
[null,null,"1_9",7,"ارضيات غرف الكهرباء",null,null,"2019-09-26","2019-09-27",false,false,false,false,false,false,false,false,false,false,false,false,false,false,false,false,false,false,false,true,true,false,false,false]
[null,null,"1_10",8,"تركيب الاوشاش (برايز ومفاتيح)",null,null,"2019-09-24","2019-09-26",false,false,false,false,false,false,false,false,false,false,false,false,false,false,false,false,false,true,true,true,false,false,false,false]
[null,null,"1_11",9,"تشطيب الدهانات الداخلية",null,null,"2019-09-26","2019-09-29",false,false,false,false,false,false,false,false,false,false,false,false,false,false,false,false,false,false,false,true,true,true,true,false]
[null,null,"1_12",10,"اعمال الكهرباء في الاركيد الخلفي",null,null,"2019-09-15","2019-09-22",false,false,false,false,false,false,false,false,true,true,true,true,true,true,true,true,false,false,false,false,false,false,false,false]
[null,null,null,null,"الدور الأول"]
[null,null,"2_1",1,"مرمات محارة",null,null,{"$f":"H32+3","v":"2019-09-10"},{"$f":"I32+3","v":"2019-09-13"},{"$f":"AND(INDIRECT(\"r4c\"&COLUMN(),FALSE)>=INDIRECT(\"r\"&ROW()&\"c8\",FALSE),INDIRECT(\"r4c\"&COLUMN(),FALSE)<=INDIRECT(\"r\"&ROW()&\"c9\",FALSE))","v":false},false,false,true,true,true,true,false,false,false,false,false,false,false,false,false,false,false,false,false,false,false,false,false]
[null,null,"2_2",2,"تقفيل ملاحظات اسقف معلقة",null,null,{"$f":"H33+3","v":"2019-09-12"},"2019-09-16",false,false,false,false,false,true,true,true,true,true,false,false,false,false,false,false,false,false,false,false,false,false,false,false]
[null,null,"2_3",3,"تنفيذ فواصل التمدد",null,null,"2019-09-12","2019-09-15",false,false,false,false,false,true,true,true,true,false,false,false,false,false,false,false,false,false,false,false,false,false,false,false]
[null,null,"2_4",4,"مرمات الدهانات",null,null,"2019-09-13","2019-09-18",false,false,false,false,false,false,true,true,true,true,true,true,false,false,false,false,{"$f":"AND(INDIRECT(\"r4c\"&COLUMN(),FALSE)>=INDIRECT(\"r\"&ROW()&\"c8\",FALSE),INDIRECT(\"r4c\"&COLUMN(),FALSE)<=INDIRECT(\"r\"&ROW()&\"c9\",FALSE))","v":false},false,false,false,false,false,false,false]
[null,null,"2_5",5,"تشطيب جرانيت",null,null,"2019-09-15","2019-09-19",false,false,false,false,false,false,false,false,true,true,true,true,true,false,false,false,false,false,false,false,false,false,false,false]
[null,null,"2_6",6,"تركيب الصدادات",null,null,"2019-09-20","2019-09-21",false,false,false,false,false,false,false,false,false,false,false,false,false,true,true,false,false,false,false,false,false,false,false,false]
[null,null,"2_7",6,"تركيب بلسقالات الفتحات",null,null,"2019-09-18","2019-09-20",false,false,false,false,false,false,false,false,false,false,false,true,true,true,false,false,false,false,false,false,false,false,false,false]
[null,null,"2_8",6,"دهانات الابواب والمشربيات",null,null,"2019-09-19","2019-09-23",false,false,false,false,false,false,false,false,false,false,false,false,true,true,true,true,true,false,false,false,false,false,false,false]
[null,null,"2_9",7,"ارضيات غرف الكهرباء",null,null,"2019-09-23","2019-09-24",false,false,false,false,false,false,false,false,false,false,false,false,false,false,false,false,true,true,false,false,false,false,false,false]
[null,null,"2_10",8,"تركيب الاوشاش (برايز ومفاتيح)",null,null,"2019-09-21","2019-09-23",false,false,false,false,false,false,false,false,false,false,false,false,false,false,true,true,true,false,false,false,false,false,false,false]
[null,null,"2_11",9,"تشطيب الدهانات الداخلية",null,null,"2019-09-23","2019-09-26",false,false,false,false,false,false,false,false,false,false,false,false,false,false,false,false,true,true,true,true,false,false,false,false]
[null,null,null,null,"الدور الثاني"]
[null,null,"3_1",1,"مرمات محارة",null,null,"2019-09-07","2019-09-10",{"$f":"AND(INDIRECT(\"r4c\"&COLUMN(),FALSE)>=INDIRECT(\"r\"&ROW()&\"c8\",FALSE),INDIRECT(\"r4c\"&COLUMN(),FALSE)<=INDIRECT(\"r\"&ROW()&\"c9\",FALSE))","v":true},true,true,true,false,false,false,false,false,false,false,false,false,false,false,false,{"$f":"AND(INDIRECT(\"r4c\"&COLUMN(),FALSE)>=INDIRECT(\"r\"&ROW()&\"c8\",FALSE),INDIRECT(\"r4c\"&COLUMN(),FALSE)<=INDIRECT(\"r\"&ROW()&\"c9\",FALSE))","v":false},false,false,false,false,false,false,false]
[null,null,"3_2",2,"تقفيل ملاحظات اسقف معلقة",null,null,"2019-09-09","2019-09-13",false,false,true,true,true,true,true,false,false,false,false,false,false,false,false,false,false,false,false,false,false,false,false,false]
[null,null,"3_3",3,"تنفيذ فواصل التمدد",null,null,"2019-09-12","2019-09-15",false,false,false,false,false,true,true,true,true,false,false,false,false,false,false,false,false,false,false,false,false,false,false,false]
[null,null,"3_4",4,"مرمات دهانات",null,null,"2019-09-10","2019-09-15",false,false,false,true,true,true,true,true,true,false,false,false,false,false,false,false,false,false,false,false,false,false,false,false]
[null,null,"3_5",5,"تشطيب جرانيت",null,null,"2019-09-12","2019-09-16",false,false,false,false,false,true,true,true,true,true,false,false,false,false,false,false,false,false,false,false,false,false,false,false]
[null,null,"3_6",6,"تركيب الصدادات",null,null,"2019-09-17","2019-09-18",false,false,false,false,false,false,false,false,false,false,true,true,false,false,false,false,false,false,false,false,false,false,false,false]
[null,null,"3_7",6,"تركيب بلسقالات الفتحات",null,null,"2019-09-15","2019-09-17",false,false,false,false,false,false,false,false,true,true,true,false,false,false,false,false,false,false,false,false,false,false,false,false]
[null,null,"3_8",6,"دهانات الابواب والمشربيات",null,null,"2019-09-16","2019-09-20",false,false,false,false,false,false,false,false,false,true,true,true,true,true,false,false,false,false,false,false,false,false,false,false]
[null,null,"3_9",7,"ارضيات غرف الكهرباء",null,null,"2019-09-20","2019-09-21",false,false,false,false,false,false,false,false,false,false,false,false,false,true,true,false,false,false,false,false,false,false,false,false]
[null,null,"3_10",8,"تركيب الاوشاش (برايز ومفاتيح)",null,null,"2019-09-18","2019-09-20",false,false,false,false,false,false,false,false,false,false,false,true,true,true,false,false,false,false,false,false,false,false,false,false]
[null,null,"3_11",9,"تشطيب الدهانات الداخلية",null,null,"2019-09-20","2019-09-23",false,false,false,false,false,false,false,false,false,false,false,false,{"$f":"AND(INDIRECT(\"r4c\"&COLUMN(),FALSE)>=INDIRECT(\"r\"&ROW()&\"c8\",FALSE),INDIRECT(\"r4c\"&COLUMN(),FALSE)<=INDIRECT(\"r\"&ROW()&\"c9\",FALSE))","v":false},true,true,true,true,false,false,false,false,false,false,false]
[null,null,null,null,"السطح"]
[null,null,"4_1",1,"مرمات المحارة",null,null,"2019-09-11","2019-09-14",{"$f":"AND(INDIRECT(\"r4c\"&COLUMN(),FALSE)>=INDIRECT(\"r\"&ROW()&\"c8\",FALSE),INDIRECT(\"r4c\"&COLUMN(),FALSE)<=INDIRECT(\"r\"&ROW()&\"c9\",FALSE))","v":false},false,false,false,true,true,true,true,false,false,false,false,false,false,false,false,{"$f":"AND(INDIRECT(\"r4c\"&COLUMN(),FALSE)>=INDIRECT(\"r\"&ROW()&\"c8\",FALSE),INDIRECT(\"r4c\"&COLUMN(),FALSE)<=INDIRECT(\"r\"&ROW()&\"c9\",FALSE))","v":false},false,false,false,false,false,false,false]
[null,null,"4_2",2,"مرمات حجر القبة",null,null,"2019-09-11","2019-09-14",false,false,false,false,true,true,true,true,false,false,false,false,false,false,false,false,false,false,false,false,false,false,false,false]
[null,null,"4_3",3,"تمديدات الصرف",null,null,"2019-09-14","2019-09-16",false,false,false,false,false,false,false,true,true,true,false,false,false,false,false,false,false,false,false,false,false,false,false,false]
[null,null,"4_4",3,"تمديدات الكهرباء",null,null,"2019-09-14","2019-09-17",false,false,false,false,false,false,false,true,true,true,true,false,false,false,false,false,false,false,false,false,false,false,false,false]
[null,null,"4_5",4,"صرف وعزل ال sky light",null,null,"2019-09-15","2019-09-19",false,false,false,false,false,false,false,false,true,true,true,true,true,false,false,false,false,false,false,false,false,false,false,false]
[null,null,"4_6",5,"اختبار بلاط السطح والجراجير",null,null,"2019-09-20","2019-09-23",false,false,false,false,false,false,false,false,false,false,false,false,false,true,true,true,true,false,false,false,false,false,false,false]
[null,null,"4_7",6,"دهانات السطح",null,null,"2019-09-21","2019-09-25",false,false,false,false,false,false,false,false,false,false,false,false,false,false,true,true,true,true,true,false,false,false,false,false]
[null,null,"4_8",7,"تشطيب دهانات داخلية",null,null,"2019-09-21","2019-09-25",false,false,false,false,false,false,false,false,false,false,false,false,false,false,true,true,true,true,true,false,false,false,false,false]
[null,null,null,null,"البهو والسلالم"]
[null,null,"5_1",1,"Curtain wall",null,null,"2019-09-03","2019-09-10",{"$f":"AND(INDIRECT(\"r4c\"&COLUMN(),FALSE)>=INDIRECT(\"r\"&ROW()&\"c8\",FALSE),INDIRECT(\"r4c\"&COLUMN(),FALSE)<=INDIRECT(\"r\"&ROW()&\"c9\",FALSE))","v":true},true,true,true,false,false,false,false,false,false,false,false,false,false,false,false,{"$f":"AND(INDIRECT(\"r4c\"&COLUMN(),FALSE)>=INDIRECT(\"r\"&ROW()&\"c8\",FALSE),INDIRECT(\"r4c\"&COLUMN(),FALSE)<=INDIRECT(\"r\"&ROW()&\"c9\",FALSE))","v":false},false,false,false,false,false,false,false]
[null,null,"5_2",3,"مرمات الحجر",null,null,"2019-09-13","2019-09-20",false,false,false,false,false,false,true,true,true,true,true,true,true,true,false,false,false,false,false,false,false,false,false,false]
[null,null,"5_3",4,"كريتال السلالم (سلم هروب1)",null,null,"2019-09-10","2019-09-15",false,false,false,true,true,true,true,true,true,false,false,false,false,false,false,false,false,false,false,false,false,false,false,false]
[null,null,"5_4",5,"كريتال السلالم (سلم هروب2)",null,null,"2019-09-15","2019-09-20",false,false,false,false,false,false,false,false,true,true,true,true,true,true,false,false,false,false,false,false,false,false,false,false]
[null,null,"5_5",6,"تركيب الابواب المعدنية",null,null,"2019-09-25","2019-09-30",false,false,false,false,false,false,false,false,false,false,false,false,false,false,false,false,false,false,true,true,true,true,true,true]
[null,null,"5_6",7,"تركيب الابواب الفرانس ميتال",null,null,null,null,false,false,false,false,false,false,false,false,false,false,false,false,false,false,false,false,false,false,false,false,false,false,false,false]
[null,null,null,null,"الواجهات"]
[null,null,"6_1",1,"مرمات الدهانات",null,null,"2019-09-22","2019-09-30",false,false,false,false,false,false,false,false,false,false,false,false,false,false,false,true,true,true,true,true,true,true,true,true]
[null,null,"6_2",2,"مرمات الحجر",null,null,"2019-09-13","2019-09-23",false,false,false,false,false,false,true,true,true,true,true,true,true,true,true,true,true,false,false,false,false,false,false,false]

{"sheet":"التقرير","index":1,"n_rows":66,"n_cols":30,"rows_kept":66,"cut":false,"hidden":false,"merged":[[28,7,28,11],[29,7,29,11],[21,7,21,11],[22,7,22,11],[23,7,23,11],[27,7,27,11],[15,7,15,11],[6,7,6,11],[7,7,7,11],[8,7,8,11],[9,7,9,11],[10,7,10,11],[4,1,4,12],[0,0,0,13],[24,7,24,11],[25,7,25,11],[26,7,26,11],[1,5,1,7],[3,0,3,13],[16,7,16,11],[17,7,17,11],[18,7,18,11],[19,7,19,11],[20,7,20,11],[11,7,11,11],[12,7,12,11],[13,7,13,11],[14,7,14,11]]}
["الجدول اليومي بالأعمال المطلوب طباعتها"]
[null,null,null,null,"عن يوم","2019-09-20"]
[]
["اوفيسسنا",null,null,null,null,null,null,null,null,null,null,null,null,null,"استرداد القيمة","استرداد قيمة القطاع","تحديد رقم القطاع","استرداد الكود","ترتيب",null,"فحص","نهاية","بداية","كود البند","قائمة"]
[null,"اوفيسنا",null,null,null,null,null,null,null,null,null,null,null,null,{"$f":"P5&INDEX(البيانات!E:E,MATCH(R5,البيانات!$C:$C,0),1)","v":"في الدور الارضي  مرمات دهانات"},{"$f":"INDEX($Y$5:$Y$12,Q5,1)","v":"في الدور الارضي  "},{"$f":"LEFT(R5,1)","v":"1"},{"$f":"INDEX($X$5:$X$86,MATCH(S5,$T$5:$T$86,0),1)","v":"1_4"},{"$f":"SMALL($T$5:$T$66,ROW()-4)","v":1},{"$f":"IF(U5<>\"\",COUNTIF($U$5:U5,U5),\"\")","v":""},{"$f":"IFERROR(IF(AND(W5<=$F$2,V5>=$F$2)=TRUE,TRUE,\"\"),\"\")","v":""},{"$f":"INDIRECT(\"البيانات!i\"&MATCH(التقرير!X5,البيانات!C:C,0))","v":"2019-09-16"},{"$f":"INDIRECT(\"البيانات!H\"&MATCH(التقرير!X5,البيانات!C:C,0))","v":"2019-09-13"},"1_1","في الدور الارضي  "]
[null,null,null,"م","بنود الاعمال","تاريخ البداية","تاريخ النهاية","ملاحظات",null,null,null,null,null,null,{"$f":"P6&INDEX(البيانات!E:E,MATCH(R6,البيانات!$C:$C,0),1)","v":"في الدور الارضي  تشطيب جرانيت"},{"$f":"INDEX($Y$5:$Y$12,Q6,1)","v":"في الدور الارضي  "},{"$f":"LEFT(R6,1)","v":"1"},"1_5",2,{"$f":"IF(U6<>\"\",COUNTIF($U$5:U6,U6),\"\")","v":""},{"$f":"IFERROR(IF(AND(W6<=$F$2,V6>=$F$2)=TRUE,TRUE,\"\"),\"\")","v":""},{"$f":"INDIRECT(\"البيانات!i\"&MATCH(التقرير!X6,البيانات!C:C,0))","v":"2019-09-19"},{"$f":"INDIRECT(\"البيانات!H\"&MATCH(التقرير!X6,البيانات!C:C,0))","v":"2019-09-15"},"1_2","في الدور الاول  ",null,null,null,"من","الى"]
[null,null,null,1,{"$f":"IFERROR(O5,\"\")","v":"في الدور الارضي  مرمات دهانات"},{"$f":"IFERROR(INDEX(البيانات!H:H,MATCH(R5,البيانات!$C:$C,0),1),\"\")","v":"2019-09-16"},{"$f":"IFERROR(INDEX(البيانات!I:I,MATCH(R5,البيانات!$C:$C,0),1),\"\")","v":"2019-09-21"},null,null,null,null,null,null,null,{"$f":"P7&INDEX(البيانات!E:E,MATCH(R7,البيانات!$C:$C,0),1)","v":"في الدور الارضي  اعمال الكهرباء في الاركيد الخلفي"},"في الدور الارضي  ","1","1_12",3,{"$f":"IF(U7<>\"\",COUNTIF($U$5:U7,U7),\"\")","v":""},"",{"$f":"INDIRECT(\"البيانات!i\"&MATCH(التقرير!X7,البيانات!C:C,0))","v":"2019-09-15"},{"$f":"INDIRECT(\"البيانات!H\"&MATCH(التقرير!X7,البيانات!C:C,0))","v":"2019-09-12"},"1_3","في الدور الثاني  ",null,null,null,"2019-09-14","2019-09-20"]
[null,null,null,{"$f":"IF(E8<>\"\",D7+1,\"\")","v":2},{"$f":"IFERROR(O6,\"\")","v":"في الدور الارضي  تشطيب جرانيت"},{"$f":"IFERROR(INDEX(البيانات!H:H,MATCH(R6,البيانات!$C:$C,0),1),\"\")","v":"2019-09-18"},{"$f":"IFERROR(INDEX(البيانات!I:I,MATCH(R6,البيانات!$C:$C,0),1),\"\")","v":"2019-09-22"},null,null,null,null,null,null,null,{"$f":"P8&INDEX(البيانات!E:E,MATCH(R8,البيانات!$C:$C,0),1)","v":"في الدور الاول  تركيب الصدادات"},"في الدور الاول  ","2","2_6",4,{"$f":"IF(U8<>\"\",COUNTIF($U$5:U8,U8),\"\")","v":1},true,{"$f":"INDIRECT(\"البيانات!i\"&MATCH(التقرير!X8,البيانات!C:C,0))","v":"2019-09-21"},{"$f":"INDIRECT(\"البيانات!H\"&MATCH(التقرير!X8,البيانات!C:C,0))","v":"2019-09-16"},"1_4","على السطح  "]
[null,null,null,{"$f":"IF(E9<>\"\",D8+1,\"\")","v":3},"في الدور الارضي  اعمال الكهرباء في الاركيد الخلفي",{"$f":"IFERROR(INDEX(البيانات!H:H,MATCH(R7,البيانات!$C:$C,0),1),\"\")","v":"2019-09-15"},{"$f":"IFERROR(INDEX(البيانات!I:I,MATCH(R7,البيانات!$C:$C,0),1),\"\")","v":"2019-09-22"},null,null,null,null,null,null,null,{"$f":"P9&INDEX(البيانات!E:E,MATCH(R9,البيانات!$C:$C,0),1)","v":"في الدور الاول  تركيب بلسقالات الفتحات"},"في الدور الاول  ","2","2_7",5,{"$f":"IF(U9<>\"\",COUNTIF($U$5:U9,U9),\"\")","v":2},true,{"$f":"INDIRECT(\"البيانات!i\"&MATCH(التقرير!X9,البيانات!C:C,0))","v":"2019-09-22"},{"$f":"INDIRECT(\"البيانات!H\"&MATCH(التقرير!X9,البيانات!C:C,0))","v":"2019-09-18"},"1_5","في البهو والسلالم  "]
[null,null,null,4,"في الدور الاول  تركيب الصدادات",{"$f":"IFERROR(INDEX(البيانات!H:H,MATCH(R8,البيانات!$C:$C,0),1),\"\")","v":"2019-09-20"},{"$f":"IFERROR(INDEX(البيانات!I:I,MATCH(R8,البيانات!$C:$C,0),1),\"\")","v":"2019-09-21"},null,null,null,null,null,null,null,{"$f":"P10&INDEX(البيانات!E:E,MATCH(R10,البيانات!$C:$C,0),1)","v":"في الدور الاول  دهانات الابواب والمشربيات"},"في الدور الاول  ","2","2_8",6,{"$f":"IF(U10<>\"\",COUNTIF($U$5:U10,U10),\"\")","v":""},"",{"$f":"INDIRECT(\"البيانات!i\"&MATCH(التقرير!X10,البيانات!C:C,0))","v":"2019-09-24"},{"$f":"INDIRECT(\"البيانات!H\"&MATCH(التقرير!X10,البيانات!C:C,0))","v":"2019-09-23"},"1_6","في الواجهات  "]
[null,null,null,5,"في الدور الاول  تركيب بلسقالات الفتحات",{"$f":"IFERROR(INDEX(البيانات!H:H,MATCH(R9,البيانات!$C:$C,0),1),\"\")","v":"2019-09-18"},{"$f":"IFERROR(INDEX(البيانات!I:I,MATCH(R9,البيانات!$C:$C,0),1),\"\")","v":"2019-09-20"},null,null,null,null,null,null,null,{"$f":"P11&INDEX(البيانات!E:E,MATCH(R11,البيانات!$C:$C,0),1)","v":"في الدور الثاني  دهانات الابواب والمشربيات"},"في الدور الثاني  ","3","3_8",7,{"$f":"IF(U11<>\"\",COUNTIF($U$5:U11,U11),\"\")","v":""},"",{"$f":"INDIRECT(\"البيانات!i\"&MATCH(التقرير!X11,البيانات!C:C,0))","v":"2019-09-23"},{"$f":"INDIRECT(\"البيانات!H\"&MATCH(التقرير!X11,البيانات!C:C,0))","v":"2019-09-21"},"1_7"]
[null,null,null,6,"في الدور الاول  دهانات الابواب والمشربيات",{"$f":"IFERROR(INDEX(البيانات!H:H,MATCH(R10,البيانات!$C:$C,0),1),\"\")","v":"2019-09-19"},{"$f":"IFERROR(INDEX(البيانات!I:I,MATCH(R10,البيانات!$C:$C,0),1),\"\")","v":"2019-09-23"},null,null,null,null,null,null,null,{"$f":"P12&INDEX(البيانات!E:E,MATCH(R12,البيانات!$C:$C,0),1)","v":"في الدور الثاني  ارضيات غرف الكهرباء"},"في الدور الثاني  ","3","3_9",8,{"$f":"IF(U12<>\"\",COUNTIF($U$5:U12,U12),\"\")","v":""},"",{"$f":"INDIRECT(\"البيانات!i\"&MATCH(التقرير!X12,البيانات!C:C,0))","v":"2019-09-26"},{"$f":"INDIRECT(\"البيانات!H\"&MATCH(التقرير!X12,البيانات!C:C,0))","v":"2019-09-22"},"1_8"]
[null,null,null,7,"في الدور الثاني  دهانات الابواب والمشربيات",{"$f":"IFERROR(INDEX(البيانات!H:H,MATCH(R11,البيانات!$C:$C,0),1),\"\")","v":"2019-09-16"},{"$f":"IFERROR(INDEX(البيانات!I:I,MATCH(R11,البيانات!$C:$C,0),1),\"\")","v":"2019-09-20"},null,null,null,null,null,null,null,{"$f":"P13&INDEX(البيانات!E:E,MATCH(R13,البيانات!$C:$C,0),1)","v":"في الدور الثاني  تركيب الاوشاش (برايز ومفاتيح)"},"في الدور الثاني  ","3","3_10",9,{"$f":"IF(U13<>\"\",COUNTIF($U$5:U13,U13),\"\")","v":""},"",{"$f":"INDIRECT(\"البيانات!i\"&MATCH(التقرير!X13,البيانات!C:C,0))","v":"2019-09-27"},{"$f":"INDIRECT(\"البيانات!H\"&MATCH(التقرير!X13,البيانات!C:C,0))","v":"2019-09-26"},"1_9"]
[null,null,null,8,"في الدور الثاني  ارضيات غرف الكهرباء",{"$f":"IFERROR(INDEX(البيانات!H:H,MATCH(R12,البيانات!$C:$C,0),1),\"\")","v":"2019-09-20"},{"$f":"IFERROR(INDEX(البيانات!I:I,MATCH(R12,البيانات!$C:$C,0),1),\"\")","v":"2019-09-21"},null,null,null,null,null,null,null,{"$f":"P14&INDEX(البيانات!E:E,MATCH(R14,البيانات!$C:$C,0),1)","v":"في الدور الثاني  تشطيب الدهانات الداخلية"},"في الدور الثاني  ","3","3_11",10,{"$f":"IF(U14<>\"\",COUNTIF($U$5:U14,U14),\"\")","v":""},"",{"$f":"INDIRECT(\"البيانات!i\"&MATCH(التقرير!X14,البيانات!C:C,0))","v":"2019-09-26"},{"$f":"INDIRECT(\"البيانات!H\"&MATCH(التقرير!X14,البيانات!C:C,0))","v":"2019-09-24"},"1_10"]
[null,null,null,9,"في الدور الثاني  تركيب الاوشاش (برايز ومفاتيح)",{"$f":"IFERROR(INDEX(البيانات!H:H,MATCH(R13,البيانات!$C:$C,0),1),\"\")","v":"2019-09-18"},{"$f":"IFERROR(INDEX(البيانات!I:I,MATCH(R13,البيانات!$C:$C,0),1),\"\")","v":"2019-09-20"},null,null,null,null,null,null,null,{"$f":"P15&INDEX(البيانات!E:E,MATCH(R15,البيانات!$C:$C,0),1)","v":"على السطح  اختبار بلاط السطح والجراجير"},"على السطح  ","4","4_6",11,{"$f":"IF(U15<>\"\",COUNTIF($U$5:U15,U15),\"\")","v":""},"",{"$f":"INDIRECT(\"البيانات!i\"&MATCH(التقرير!X15,البيانات!C:C,0))","v":"2019-09-29"},{"$f":"INDIRECT(\"البيانات!H\"&MATCH(التقرير!X15,البيانات!C:C,0))","v":"2019-09-26"},"1_11"]
[null,null,null,10,"في الدور الثاني  تشطيب الدهانات الداخلية",{"$f":"IFERROR(INDEX(البيانات!H:H,MATCH(R14,البيانات!$C:$C,0),1),\"\")","v":"2019-09-20"},{"$f":"IFERROR(INDEX(البيانات!I:I,MATCH(R14,البيانات!$C:$C,0),1),\"\")","v":"2019-09-23"},null,null,null,null,null,null,null,{"$f":"P16&INDEX(البيانات!E:E,MATCH(R16,البيانات!$C:$C,0),1)","v":"في البهو والسلالم  مرمات الحجر"},"في البهو والسلالم  ","5","5_2",12,{"$f":"IF(U16<>\"\",COUNTIF($U$5:U16,U16),\"\")","v":3},true,{"$f":"INDIRECT(\"البيانات!i\"&MATCH(التقرير!X16,البيانات!C:C,0))","v":"2019-09-22"},{"$f":"INDIRECT(\"البيانات!H\"&MATCH(التقرير!X16,البيانات!C:C,0))","v":"2019-09-15"},"1_12"]
[null,null,null,11,"على السطح  اختبار بلاط السطح والجراجير",{"$f":"IFERROR(INDEX(البيانات!H:H,MATCH(R15,البيانات!$C:$C,0),1),\"\")","v":"2019-09-20"},{"$f":"IFERROR(INDEX(البيانات!I:I,MATCH(R15,البيانات!$C:$C,0),1),\"\")","v":"2019-09-23"},null,null,null,null,null,null,null,{"$f":"P17&INDEX(البيانات!E:E,MATCH(R17,البيانات!$C:$C,0),1)","v":"في البهو والسلالم  كريتال السلالم (سلم هروب2)"},"في البهو والسلالم  ","5","5_4",13,{"$f":"IF(U17<>\"\",COUNTIF($U$5:U17,U17),\"\")","v":""},"",{"$f":"INDIRECT(\"البيانات!i\"&MATCH(التقرير!X17,البيانات!C:C,0))","v":{"$error":"#N/A"}},{"$f":"INDIRECT(\"البيانات!H\"&MATCH(التقرير!X17,البيانات!C:C,0))","v":{"$error":"#N/A"}}]
[null,null,null,12,"في البهو والسلالم  مرمات الحجر",{"$f":"IFERROR(INDEX(البيانات!H:H,MATCH(R16,البيانات!$C:$C,0),1),\"\")","v":"2019-09-13"},{"$f":"IFERROR(INDEX(البيانات!I:I,MATCH(R16,البيانات!$C:$C,0),1),\"\")","v":"2019-09-20"},null,null,null,null,null,null,null,{"$f":"P18&INDEX(البيانات!E:E,MATCH(R18,البيانات!$C:$C,0),1)","v":"في الواجهات  مرمات الحجر"},"في الواجهات  ","6","6_2",14,{"$f":"IF(U18<>\"\",COUNTIF($U$5:U18,U18),\"\")","v":""},"",{"$f":"INDIRECT(\"البيانات!i\"&MATCH(التقرير!X18,البيانات!C:C,0))","v":"2019-09-13"},{"$f":"INDIRECT(\"البيانات!H\"&MATCH(التقرير!X18,البيانات!C:C,0))","v":"2019-09-10"},"2_1"]
[null,null,null,13,"في البهو والسلالم  كريتال السلالم (سلم هروب2)",{"$f":"IFERROR(INDEX(البيانات!H:H,MATCH(R17,البيانات!$C:$C,0),1),\"\")","v":"2019-09-15"},{"$f":"IFERROR(INDEX(البيانات!I:I,MATCH(R17,البيانات!$C:$C,0),1),\"\")","v":"2019-09-20"},null,null,null,null,null,null,null,{"$f":"P19&INDEX(البيانات!E:E,MATCH(R19,البيانات!$C:$C,0),1)","v":{"$error":"#NUM!"}},{"$error":"#NUM!"},{"$error":"#NUM!"},{"$error":"#NUM!"},{"$error":"#NUM!"},{"$f":"IF(U19<>\"\",COUNTIF($U$5:U19,U19),\"\")","v":""},"",{"$f":"INDIRECT(\"البيانات!i\"&MATCH(التقرير!X19,البيانات!C:C,0))","v":"2019-09-16"},{"$f":"INDIRECT(\"البيانات!H\"&MATCH(التقرير!X19,البيانات!C:C,0))","v":"2019-09-12"},"2_2"]
[null,null,null,14,"في الواجهات  مرمات الحجر",{"$f":"IFERROR(INDEX(البيانات!H:H,MATCH(R18,البيانات!$C:$C,0),1),\"\")","v":"2019-09-13"},{"$f":"IFERROR(INDEX(البيانات!I:I,MATCH(R18,البيانات!$C:$C,0),1),\"\")","v":"2019-09-23"},null,null,null,null,null,null,null,{"$f":"P20&INDEX(البيانات!E:E,MATCH(R20,البيانات!$C:$C,0),1)","v":{"$error":"#NUM!"}},{"$error":"#NUM!"},{"$error":"#NUM!"},{"$error":"#NUM!"},{"$error":"#NUM!"},{"$f":"IF(U20<>\"\",COUNTIF($U$5:U20,U20),\"\")","v":""},"",{"$f":"INDIRECT(\"البيانات!i\"&MATCH(التقرير!X20,البيانات!C:C,0))","v":"2019-09-15"},{"$f":"INDIRECT(\"البيانات!H\"&MATCH(التقرير!X20,البيانات!C:C,0))","v":"2019-09-12"},"2_3"]
[null,null,null,"","",{"$f":"IFERROR(INDEX(البيانات!H:H,MATCH(R19,البيانات!$C:$C,0),1),\"\")","v":""},{"$f":"IFERROR(INDEX(البيانات!I:I,MATCH(R19,البيانات!$C:$C,0),1),\"\")","v":""},null,null,null,null,null,null,null,{"$f":"P21&INDEX(البيانات!E:E,MATCH(R21,البيانات!$C:$C,0),1)","v":{"$error":"#NUM!"}},{"$error":"#NUM!"},{"$error":"#NUM!"},{"$error":"#NUM!"},{"$error":"#NUM!"},{"$f":"IF(U21<>\"\",COUNTIF($U$5:U21,U21),\"\")","v":""},"",{"$f":"INDIRECT(\"البيانات!i\"&MATCH(التقرير!X21,البيانات!C:C,0))","v":"2019-09-18"},{"$f":"INDIRECT(\"البيانات!H\"&MATCH(التقرير!X21,البيانات!C:C,0))","v":"2019-09-13"},"2_4"]
[null,null,null,"","",{"$f":"IFERROR(INDEX(البيانات!H:H,MATCH(R20,البيانات!$C:$C,0),1),\"\")","v":""},{"$f":"IFERROR(INDEX(البيانات!I:I,MATCH(R20,البيانات!$C:$C,0),1),\"\")","v":""},null,null,null,null,null,null,null,{"$f":"P22&INDEX(البيانات!E:E,MATCH(R22,البيانات!$C:$C,0),1)","v":{"$error":"#NUM!"}},{"$error":"#NUM!"},{"$error":"#NUM!"},{"$error":"#NUM!"},{"$error":"#NUM!"},{"$f":"IF(U22<>\"\",COUNTIF($U$5:U22,U22),\"\")","v":""},"",{"$f":"INDIRECT(\"البيانات!i\"&MATCH(التقرير!X22,البيانات!C:C,0))","v":"2019-09-19"},{"$f":"INDIRECT(\"البيانات!H\"&MATCH(التقرير!X22,البيانات!C:C,0))","v":"2019-09-15"},"2_5"]
[null,null,null,"","",{"$f":"IFERROR(INDEX(البيانات!H:H,MATCH(R21,البيانات!$C:$C,0),1),\"\")","v":""},{"$f":"IFERROR(INDEX(البيانات!I:I,MATCH(R21,البيانات!$C:$C,0),1),\"\")","v":""},null,null,null,null,null,null,null,{"$f":"P23&INDEX(البيانات!E:E,MATCH(R23,البيانات!$C:$C,0),1)","v":{"$error":"#NUM!"}},{"$error":"#NUM!"},{"$error":"#NUM!"},{"$error":"#NUM!"},{"$error":"#NUM!"},{"$f":"IF(U23<>\"\",COUNTIF($U$5:U23,U23),\"\")","v":4},true,{"$f":"INDIRECT(\"البيانات!i\"&MATCH(التقرير!X23,البيانات!C:C,0))","v":"2019-09-21"},{"$f":"INDIRECT(\"البيانات!H\"&MATCH(التقرير!X23,البيانات!C:C,0))","v":"2019-09-20"},"2_6"]
[null,null,null,{"$f":"IF(E24<>\"\",D23+1,\"\")","v":""},{"$f":"IFERROR(O22,\"\")","v":""},{"$f":"IFERROR(INDEX(البيانات!H:H,MATCH(R22,البيانات!$C:$C,0),1),\"\")","v":""},{"$f":"IFERROR(INDEX(البيانات!I:I,MATCH(R22,البيانات!$C:$C,0),1),\"\")","v":""},null,null,null,null,null,null,null,{"$f":"P24&INDEX(البيانات!E:E,MATCH(R24,البيانات!$C:$C,0),1)","v":{"$error":"#NUM!"}},{"$error":"#NUM!"},{"$error":"#NUM!"},{"$error":"#NUM!"},{"$error":"#NUM!"},{"$f":"IF(U24<>\"\",COUNTIF($U$5:U24,U24),\"\")","v":5},true,{"$f":"INDIRECT(\"البيانات!i\"&MATCH(التقرير!X24,البيانات!C:C,0))","v":"2019-09-20"},{"$f":"INDIRECT(\"البيانات!H\"&MATCH(التقرير!X24,البيانات!C:C,0))","v":"2019-09-18"},"2_7"]
[null,null,null,"","",{"$f":"IFERROR(INDEX(البيانات!H:H,MATCH(R23,البيانات!$C:$C,0),1),\"\")","v":""},{"$f":"IFERROR(INDEX(البيانات!I:I,MATCH(R23,البيانات!$C:$C,0),1),\"\")","v":""}]
[null,null,null,"","",{"$f":"IFERROR(INDEX(البيانات!H:H,MATCH(R24,البيانات!$C:$C,0),1),\"\")","v":""},{"$f":"IFERROR(INDEX(البيانات!I:I,MATCH(R24,البيانات!$C:$C,0),1),\"\")","v":""}]
[null,null,null,{"$f":"IF(E27<>\"\",D26+1,\"\")","v":""},null,{"$f":"IFERROR(INDEX(البيانات!H:H,MATCH(R25,البيانات!$C:$C,0),1),\"\")","v":""},{"$f":"IFERROR(INDEX(البيانات!I:I,MATCH(R25,البيانات!$C:$C,0),1),\"\")","v":""}]
[null,null,null,"",null,{"$f":"IFERROR(INDEX(البيانات!H:H,MATCH(R26,البيانات!$C:$C,0),1),\"\")","v":""},{"$f":"IFERROR(INDEX(البيانات!I:I,MATCH(R26,البيانات!$C:$C,0),1),\"\")","v":""}]
[null,null,null,"",null,{"$f":"IFERROR(INDEX(البيانات!H:H,MATCH(R27,البيانات!$C:$C,0),1),\"\")","v":""},{"$f":"IFERROR(INDEX(البيانات!I:I,MATCH(R27,البيانات!$C:$C,0),1),\"\")","v":""}]
[null,null,null,"",null,{"$f":"IFERROR(INDEX(البيانات!H:H,MATCH(R28,البيانات!$C:$C,0),1),\"\")","v":""},{"$f":"IFERROR(INDEX(البيانات!I:I,MATCH(R28,البيانات!$C:$C,0),1),\"\")","v":""}]
[null,null,null,null,null,null,null,null,null,null,null,null,null,null,{"$f":"P31&INDEX(البيانات!E:E,MATCH(R31,البيانات!$C:$C,0),1)","v":{"$error":"#NUM!"}},{"$error":"#NUM!"},{"$error":"#NUM!"},{"$f":"INDEX($X$5:$X$86,MATCH(S31,$T$5:$T$86,0),1)","v":{"$error":"#NUM!"}},{"$f":"SMALL($T$5:$T$66,ROW()-4)","v":{"$error":"#NUM!"}},{"$f":"IF(U31<>\"\",COUNTIF($U$5:U31,U31),\"\")","v":6},true,{"$f":"INDIRECT(\"البيانات!i\"&MATCH(التقرير!X31,البيانات!C:C,0))","v":"2019-09-23"},{"$f":"INDIRECT(\"البيانات!H\"&MATCH(التقرير!X31,البيانات!C:C,0))","v":"2019-09-19"},"2_8"]
[null,null,null,null,null,null,null,null,null,null,null,null,null,null,{"$f":"P32&INDEX(البيانات!E:E,MATCH(R32,البيانات!$C:$C,0),1)","v":{"$error":"#NUM!"}},{"$error":"#NUM!"},{"$error":"#NUM!"},{"$error":"#NUM!"},{"$error":"#NUM!"},{"$f":"IF(U32<>\"\",COUNTIF($U$5:U32,U32),\"\")","v":""},"",{"$f":"INDIRECT(\"البيانات!i\"&MATCH(التقرير!X32,البيانات!C:C,0))","v":"2019-09-24"},{"$f":"INDIRECT(\"البيانات!H\"&MATCH(التقرير!X32,البيانات!C:C,0))","v":"2019-09-23"},"2_9"]
[null,null,null,null,null,null,null,null,null,null,null,null,null,null,{"$f":"P33&INDEX(البيانات!E:E,MATCH(R33,البيانات!$C:$C,0),1)","v":{"$error":"#NUM!"}},{"$error":"#NUM!"},{"$error":"#NUM!"},{"$error":"#NUM!"},{"$error":"#NUM!"},{"$f":"IF(U33<>\"\",COUNTIF($U$5:U33,U33),\"\")","v":""},"",{"$f":"INDIRECT(\"البيانات!i\"&MATCH(التقرير!X33,البيانات!C:C,0))","v":"2019-09-23"},{"$f":"INDIRECT(\"البيانات!H\"&MATCH(التقرير!X33,البيانات!C:C,0))","v":"2019-09-21"},"2_10"]
[null,null,null,null,"مهندس الموقع",null,null,"مدير المشروع",null,null,null,null,null,null,{"$f":"P34&INDEX(البيانات!E:E,MATCH(R34,البيانات!$C:$C,0),1)","v":{"$error":"#NUM!"}},{"$error":"#NUM!"},{"$error":"#NUM!"},{"$error":"#NUM!"},{"$error":"#NUM!"},{"$f":"IF(U34<>\"\",COUNTIF($U$5:U34,U34),\"\")","v":""},"",{"$f":"INDIRECT(\"البيانات!i\"&MATCH(التقرير!X34,البيانات!C:C,0))","v":"2019-09-26"},{"$f":"INDIRECT(\"البيانات!H\"&MATCH(التقرير!X34,البيانات!C:C,0))","v":"2019-09-23"},"2_11"]
[null,null,null,"",{"$f":"IFERROR(O48,\"\")","v":""},null,null,null,null,null,null,null,null,null,{"$f":"P35&INDEX(البيانات!E:E,MATCH(R35,البيانات!$C:$C,0),1)","v":{"$error":"#NUM!"}},{"$error":"#NUM!"},{"$error":"#NUM!"},{"$error":"#NUM!"},{"$error":"#NUM!"},{"$f":"IF(U35<>\"\",COUNTIF($U$5:U35,U35),\"\")","v":""},"",{"$f":"INDIRECT(\"البيانات!i\"&MATCH(التقرير!X35,البيانات!C:C,0))","v":{"$error":"#N/A"}},{"$f":"INDIRECT(\"البيانات!H\"&MATCH(التقرير!X35,البيانات!C:C,0))","v":{"$error":"#N/A"}}]
[null,null,null,"","",null,null,null,null,null,null,null,null,null,{"$f":"P36&INDEX(البيانات!E:E,MATCH(R36,البيانات!$C:$C,0),1)","v":{"$error":"#NUM!"}},{"$error":"#NUM!"},{"$error":"#NUM!"},{"$error":"#NUM!"},{"$error":"#NUM!"},{"$f":"IF(U36<>\"\",COUNTIF($U$5:U36,U36),\"\")","v":""},"",{"$f":"INDIRECT(\"البيانات!i\"&MATCH(التقرير!X36,البيانات!C:C,0))","v":"2019-09-10"},{"$f":"INDIRECT(\"البيانات!H\"&MATCH(التقرير!X36,البيانات!C:C,0))","v":"2019-09-07"},"3_1"]
[null,null,null,"","",null,null,null,null,null,null,null,null,null,{"$f":"P37&INDEX(البيانات!E:E,MATCH(R37,البيانات!$C:$C,0),1)","v":{"$error":"#NUM!"}},{"$error":"#NUM!"},{"$error":"#NUM!"},{"$error":"#NUM!"},{"$error":"#NUM!"},{"$f":"IF(U37<>\"\",COUNTIF($U$5:U37,U37),\"\")","v":""},"",{"$f":"INDIRECT(\"البيانات!i\"&MATCH(التقرير!X37,البيانات!C:C,0))","v":"2019-09-13"},{"$f":"INDIRECT(\"البيانات!H\"&MATCH(التقرير!X37,البيانات!C:C,0))","v":"2019-09-09"},"3_2"]
[null,null,null,"","",null,null,null,null,null,null,null,null,null,{"$f":"P38&INDEX(البيانات!E:E,MATCH(R38,البيانات!$C:$C,0),1)","v":{"$error":"#NUM!"}},{"$error":"#NUM!"},{"$error":"#NUM!"},{"$error":"#NUM!"},{"$error":"#NUM!"},{"$f":"IF(U38<>\"\",COUNTIF($U$5:U38,U38),\"\")","v":""},"",{"$f":"INDIRECT(\"البيانات!i\"&MATCH(التقرير!X38,البيانات!C:C,0))","v":"2019-09-15"},{"$f":"INDIRECT(\"البيانات!H\"&MATCH(التقرير!X38,البيانات!C:C,0))","v":"2019-09-12"},"3_3"]
[null,null,null,"","",null,null,null,null,null,null,null,null,null,{"$f":"P39&INDEX(البيانات!E:E,MATCH(R39,البيانات!$C:$C,0),1)","v":{"$error":"#NUM!"}},{"$error":"#NUM!"},{"$error":"#NUM!"},{"$error":"#NUM!"},{"$error":"#NUM!"},{"$f":"IF(U39<>\"\",COUNTIF($U$5:U39,U39),\"\")","v":""},"",{"$f":"INDIRECT(\"البيانات!i\"&MATCH(التقرير!X39,البيانات!C:C,0))","v":"2019-09-15"},{"$f":"INDIRECT(\"البيانات!H\"&MATCH(التقرير!X39,البيانات!C:C,0))","v":"2019-09-10"},"3_4"]
[null,null,null,"","",null,null,null,null,null,null,null,null,null,{"$f":"P40&INDEX(البيانات!E:E,MATCH(R40,البيانات!$C:$C,0),1)","v":{"$error":"#NUM!"}},{"$error":"#NUM!"},{"$error":"#NUM!"},{"$error":"#NUM!"},{"$error":"#NUM!"},{"$f":"IF(U40<>\"\",COUNTIF($U$5:U40,U40),\"\")","v":""},"",{"$f":"INDIRECT(\"البيانات!i\"&MATCH(التقرير!X40,البيانات!C:C,0))","v":"2019-09-16"},{"$f":"INDIRECT(\"البيانات!H\"&MATCH(التقرير!X40,البيانات!C:C,0))","v":"2019-09-12"},"3_5"]
[null,null,null,"","",null,null,null,null,null,null,null,null,null,{"$f":"P41&INDEX(البيانات!E:E,MATCH(R41,البيانات!$C:$C,0),1)","v":{"$error":"#NUM!"}},{"$error":"#NUM!"},{"$error":"#NUM!"},{"$error":"#NUM!"},{"$error":"#NUM!"},{"$f":"IF(U41<>\"\",COUNTIF($U$5:U41,U41),\"\")","v":""},"",{"$f":"INDIRECT(\"البيانات!i\"&MATCH(التقرير!X41,البيانات!C:C,0))","v":"2019-09-18"},{"$f":"INDIRECT(\"البيانات!H\"&MATCH(التقرير!X41,البيانات!C:C,0))","v":"2019-09-17"},"3_6"]
[null,null,null,"","",null,null,null,null,null,null,null,null,null,{"$f":"P42&INDEX(البيانات!E:E,MATCH(R42,البيانات!$C:$C,0),1)","v":{"$error":"#NUM!"}},{"$error":"#NUM!"},{"$error":"#NUM!"},{"$error":"#NUM!"},{"$error":"#NUM!"},{"$f":"IF(U42<>\"\",COUNTIF($U$5:U42,U42),\"\")","v":""},"",{"$f":"INDIRECT(\"البيانات!i\"&MATCH(التقرير!X42,البيانات!C:C,0))","v":"2019-09-17"},{"$f":"INDIRECT(\"البيانات!H\"&MATCH(التقرير!X42,البيانات!C:C,0))","v":"2019-09-15"},"3_7"]
[null,null,null,null,"",null,null,null,null,null,null,null,null,null,{"$f":"P43&INDEX(البيانات!E:E,MATCH(R43,البيانات!$C:$C,0),1)","v":{"$error":"#NUM!"}},{"$error":"#NUM!"},{"$error":"#NUM!"},{"$error":"#NUM!"},{"$error":"#NUM!"},{"$f":"IF(U43<>\"\",COUNTIF($U$5:U43,U43),\"\")","v":7},true,{"$f":"INDIRECT(\"البيانات!i\"&MATCH(التقرير!X43,البيانات!C:C,0))","v":"2019-09-20"},{"$f":"INDIRECT(\"البيانات!H\"&MATCH(التقرير!X43,البيانات!C:C,0))","v":"2019-09-16"},"3_8"]
[null,null,null,null,"",null,null,null,null,null,null,null,null,null,{"$f":"P44&INDEX(البيانات!E:E,MATCH(R44,البيانات!$C:$C,0),1)","v":{"$error":"#NUM!"}},{"$error":"#NUM!"},{"$error":"#NUM!"},{"$error":"#NUM!"},{"$error":"#NUM!"},{"$f":"IF(U44<>\"\",COUNTIF($U$5:U44,U44),\"\")","v":8},true,{"$f":"INDIRECT(\"البيانات!i\"&MATCH(التقرير!X44,البيانات!C:C,0))","v":"2019-09-21"},{"$f":"INDIRECT(\"البيانات!H\"&MATCH(التقرير!X44,البيانات!C:C,0))","v":"2019-09-20"},"3_9"]
[null,null,null,null,"",null,null,null,null,null,null,null,null,null,{"$f":"P45&INDEX(البيانات!E:E,MATCH(R45,البيانات!$C:$C,0),1)","v":{"$error":"#NUM!"}},{"$error":"#NUM!"},{"$error":"#NUM!"},{"$error":"#NUM!"},{"$error":"#NUM!"},{"$f":"IF(U45<>\"\",COUNTIF($U$5:U45,U45),\"\")","v":9},true,{"$f":"INDIRECT(\"البيانات!i\"&MATCH(التقرير!X45,البيانات!C:C,0))","v":"2019-09-20"},{"$f":"INDIRECT(\"البيانات!H\"&MATCH(التقرير!X45,البيانات!C:C,0))","v":"2019-09-18"},"3_10"]
[null,null,null,null,"",null,null,null,null,null,null,null,null,null,{"$f":"P46&INDEX(البيانات!E:E,MATCH(R46,البيانات!$C:$C,0),1)","v":{"$error":"#NUM!"}},{"$error":"#NUM!"},{"$error":"#NUM!"},{"$error":"#NUM!"},{"$error":"#NUM!"},{"$f":"IF(U46<>\"\",COUNTIF($U$5:U46,U46),\"\")","v":10},true,{"$f":"INDIRECT(\"البيانات!i\"&MATCH(التقرير!X46,البيانات!C:C,0))","v":"2019-09-23"},{"$f":"INDIRECT(\"البيانات!H\"&MATCH(التقرير!X46,البيانات!C:C,0))","v":"2019-09-20"},"3_11"]
[null,null,null,null,"",null,null,null,null,null,null,null,null,null,{"$f":"P47&INDEX(البيانات!E:E,MATCH(R47,البيانات!$C:$C,0),1)","v":{"$error":"#NUM!"}},{"$error":"#NUM!"},{"$error":"#NUM!"},{"$error":"#NUM!"},{"$error":"#NUM!"},{"$f":"IF(U47<>\"\",COUNTIF($U$5:U47,U47),\"\")","v":""},"",{"$f":"INDIRECT(\"البيانات!i\"&MATCH(التقرير!X47,البيانات!C:C,0))","v":{"$error":"#N/A"}},{"$f":"INDIRECT(\"البيانات!H\"&MATCH(التقرير!X47,البيانات!C:C,0))","v":{"$error":"#N/A"}}]
[null,null,null,null,"",null,null,null,null,null,null,null,null,null,{"$f":"P48&INDEX(البيانات!E:E,MATCH(R48,البيانات!$C:$C,0),1)","v":{"$error":"#NUM!"}},{"$error":"#NUM!"},{"$error":"#NUM!"},{"$error":"#NUM!"},{"$error":"#NUM!"},{"$f":"IF(U48<>\"\",COUNTIF($U$5:U48,U48),\"\")","v":""},"",{"$f":"INDIRECT(\"البيانات!i\"&MATCH(التقرير!X48,البيانات!C:C,0))","v":"2019-09-14"},{"$f":"INDIRECT(\"البيانات!H\"&MATCH(التقرير!X48,البيانات!C:C,0))","v":"2019-09-11"},"4_1"]
[null,null,null,null,"",null,null,null,null,null,null,null,null,null,{"$f":"P49&INDEX(البيانات!E:E,MATCH(R49,البيانات!$C:$C,0),1)","v":{"$error":"#NUM!"}},{"$error":"#NUM!"},{"$error":"#NUM!"},{"$error":"#NUM!"},{"$error":"#NUM!"},{"$f":"IF(U49<>\"\",COUNTIF($U$5:U49,U49),\"\")","v":""},"",{"$f":"INDIRECT(\"البيانات!i\"&MATCH(التقرير!X49,البيانات!C:C,0))","v":"2019-09-14"},{"$f":"INDIRECT(\"البيانات!H\"&MATCH(التقرير!X49,البيانات!C:C,0))","v":"2019-09-11"},"4_2"]
[null,null,null,null,"",null,null,null,null,null,null,null,null,null,{"$f":"P50&INDEX(البيانات!E:E,MATCH(R50,البيانات!$C:$C,0),1)","v":{"$error":"#NUM!"}},{"$error":"#NUM!"},{"$error":"#NUM!"},{"$error":"#NUM!"},{"$error":"#NUM!"},{"$f":"IF(U50<>\"\",COUNTIF($U$5:U50,U50),\"\")","v":""},"",{"$f":"INDIRECT(\"البيانات!i\"&MATCH(التقرير!X50,البيانات!C:C,0))","v":"2019-09-16"},{"$f":"INDIRECT(\"البيانات!H\"&MATCH(التقرير!X50,البيانات!C:C,0))","v":"2019-09-14"},"4_3"]
[null,null,null,null,"",null,null,null,null,null,null,null,null,null,{"$f":"P51&INDEX(البيانات!E:E,MATCH(R51,البيانات!$C:$C,0),1)","v":{"$error":"#NUM!"}},{"$error":"#NUM!"},{"$error":"#NUM!"},{"$error":"#NUM!"},{"$error":"#NUM!"},{"$f":"IF(U51<>\"\",COUNTIF($U$5:U51,U51),\"\")","v":""},"",{"$f":"INDIRECT(\"البيانات!i\"&MATCH(التقرير!X51,البيانات!C:C,0))","v":"2019-09-17"},{"$f":"INDIRECT(\"البيانات!H\"&MATCH(التقرير!X51,البيانات!C:C,0))","v":"2019-09-14"},"4_4"]
[null,null,null,null,null,null,null,null,null,null,null,null,null,null,{"$f":"P52&INDEX(البيانات!E:E,MATCH(R52,البيانات!$C:$C,0),1)","v":{"$error":"#NUM!"}},{"$error":"#NUM!"},{"$error":"#NUM!"},{"$error":"#NUM!"},{"$error":"#NUM!"},{"$f":"IF(U52<>\"\",COUNTIF($U$5:U52,U52),\"\")","v":""},"",{"$f":"INDIRECT(\"البيانات!i\"&MATCH(التقرير!X52,البيانات!C:C,0))","v":"2019-09-19"},{"$f":"INDIRECT(\"البيانات!H\"&MATCH(التقرير!X52,البيانات!C:C,0))","v":"2019-09-15"},"4_5"]
[null,null,null,null,null,null,null,null,null,null,null,null,null,null,{"$f":"P53&INDEX(البيانات!E:E,MATCH(R53,البيانات!$C:$C,0),1)","v":{"$error":"#NUM!"}},{"$error":"#NUM!"},{"$error":"#NUM!"},{"$error":"#NUM!"},{"$error":"#NUM!"},{"$f":"IF(U53<>\"\",COUNTIF($U$5:U53,U53),\"\")","v":11},true,{"$f":"INDIRECT(\"البيانات!i\"&MATCH(التقرير!X53,البيانات!C:C,0))","v":"2019-09-23"},{"$f":"INDIRECT(\"البيانات!H\"&MATCH(التقرير!X53,البيانات!C:C,0))","v":"2019-09-20"},"4_6"]
[null,null,null,null,null,null,null,null,null,null,null,null,null,null,{"$f":"P54&INDEX(البيانات!E:E,MATCH(R54,البيانات!$C:$C,0),1)","v":{"$error":"#NUM!"}},{"$error":"#NUM!"},{"$error":"#NUM!"},{"$error":"#NUM!"},{"$error":"#NUM!"},{"$f":"IF(U54<>\"\",COUNTIF($U$5:U54,U54),\"\")","v":""},"",{"$f":"INDIRECT(\"البيانات!i\"&MATCH(التقرير!X54,البيانات!C:C,0))","v":"2019-09-25"},{"$f":"INDIRECT(\"البيانات!H\"&MATCH(التقرير!X54,البيانات!C:C,0))","v":"2019-09-21"},"4_7"]
[null,null,null,null,null,null,null,null,null,null,null,null,null,null,{"$f":"P55&INDEX(البيانات!E:E,MATCH(R55,البيانات!$C:$C,0),1)","v":{"$error":"#NUM!"}},{"$error":"#NUM!"},{"$error":"#NUM!"},{"$error":"#NUM!"},{"$error":"#NUM!"},{"$f":"IF(U55<>\"\",COUNTIF($U$5:U55,U55),\"\")","v":""},"",{"$f":"INDIRECT(\"البيانات!i\"&MATCH(التقرير!X55,البيانات!C:C,0))","v":"2019-09-25"},{"$f":"INDIRECT(\"البيانات!H\"&MATCH(التقرير!X55,البيانات!C:C,0))","v":"2019-09-21"},"4_8"]
[null,null,null,null,null,null,null,null,null,null,null,null,null,null,{"$f":"P56&INDEX(البيانات!E:E,MATCH(R56,البيانات!$C:$C,0),1)","v":{"$error":"#NUM!"}},{"$error":"#NUM!"},{"$error":"#NUM!"},{"$error":"#NUM!"},{"$error":"#NUM!"},{"$f":"IF(U56<>\"\",COUNTIF($U$5:U56,U56),\"\")","v":""},"",{"$f":"INDIRECT(\"البيانات!i\"&MATCH(التقرير!X56,البيانات!C:C,0))","v":{"$error":"#N/A"}},{"$f":"INDIRECT(\"البيانات!H\"&MATCH(التقرير!X56,البيانات!C:C,0))","v":{"$error":"#N/A"}}]
[null,null,null,null,null,null,null,null,null,null,null,null,null,null,{"$f":"P57&INDEX(البيانات!E:E,MATCH(R57,البيانات!$C:$C,0),1)","v":{"$error":"#NUM!"}},{"$error":"#NUM!"},{"$error":"#NUM!"},{"$error":"#NUM!"},{"$error":"#NUM!"},{"$f":"IF(U57<>\"\",COUNTIF($U$5:U57,U57),\"\")","v":""},"",{"$f":"INDIRECT(\"البيانات!i\"&MATCH(التقرير!X57,البيانات!C:C,0))","v":"2019-09-10"},{"$f":"INDIRECT(\"البيانات!H\"&MATCH(التقرير!X57,البيانات!C:C,0))","v":"2019-09-03"},"5_1"]
[null,null,null,null,null,null,null,null,null,null,null,null,null,null,{"$f":"P58&INDEX(البيانات!E:E,MATCH(R58,البيانات!$C:$C,0),1)","v":{"$error":"#NUM!"}},{"$error":"#NUM!"},{"$error":"#NUM!"},{"$error":"#NUM!"},{"$error":"#NUM!"},{"$f":"IF(U58<>\"\",COUNTIF($U$5:U58,U58),\"\")","v":12},true,{"$f":"INDIRECT(\"البيانات!i\"&MATCH(التقرير!X58,البيانات!C:C,0))","v":"2019-09-20"},{"$f":"INDIRECT(\"البيانات!H\"&MATCH(التقرير!X58,البيانات!C:C,0))","v":"2019-09-13"},"5_2"]
[null,null,null,null,null,null,null,null,null,null,null,null,null,null,{"$f":"P59&INDEX(البيانات!E:E,MATCH(R59,البيانات!$C:$C,0),1)","v":{"$error":"#NUM!"}},{"$error":"#NUM!"},{"$error":"#NUM!"},{"$error":"#NUM!"},{"$error":"#NUM!"},{"$f":"IF(U59<>\"\",COUNTIF($U$5:U59,U59),\"\")","v":""},"",{"$f":"INDIRECT(\"البيانات!i\"&MATCH(التقرير!X59,البيانات!C:C,0))","v":"2019-09-15"},{"$f":"INDIRECT(\"البيانات!H\"&MATCH(التقرير!X59,البيانات!C:C,0))","v":"2019-09-10"},"5_3"]
[null,null,null,null,null,null,null,null,null,null,null,null,null,null,{"$f":"P60&INDEX(البيانات!E:E,MATCH(R60,البيانات!$C:$C,0),1)","v":{"$error":"#NUM!"}},{"$error":"#NUM!"},{"$error":"#NUM!"},{"$error":"#NUM!"},{"$error":"#NUM!"},{"$f":"IF(U60<>\"\",COUNTIF($U$5:U60,U60),\"\")","v":13},true,{"$f":"INDIRECT(\"البيانات!i\"&MATCH(التقرير!X60,البيانات!C:C,0))","v":"2019-09-20"},{"$f":"INDIRECT(\"البيانات!H\"&MATCH(التقرير!X60,البيانات!C:C,0))","v":"2019-09-15"},"5_4"]
[null,null,null,null,null,null,null,null,null,null,null,null,null,null,{"$f":"P61&INDEX(البيانات!E:E,MATCH(R61,البيانات!$C:$C,0),1)","v":{"$error":"#NUM!"}},{"$error":"#NUM!"},{"$error":"#NUM!"},{"$error":"#NUM!"},{"$error":"#NUM!"},{"$f":"IF(U61<>\"\",COUNTIF($U$5:U61,U61),\"\")","v":""},"",{"$f":"INDIRECT(\"البيانات!i\"&MATCH(التقرير!X61,البيانات!C:C,0))","v":"2019-09-30"},{"$f":"INDIRECT(\"البيانات!H\"&MATCH(التقرير!X61,البيانات!C:C,0))","v":"2019-09-25"},"5_5"]
[null,null,null,null,null,null,null,null,null,null,null,null,null,null,{"$f":"P62&INDEX(البيانات!E:E,MATCH(R62,البيانات!$C:$C,0),1)","v":{"$error":"#NUM!"}},{"$error":"#NUM!"},{"$error":"#NUM!"},{"$error":"#NUM!"},{"$error":"#NUM!"},{"$f":"IF(U62<>\"\",COUNTIF($U$5:U62,U62),\"\")","v":""},"",{"$f":"INDIRECT(\"البيانات!i\"&MATCH(التقرير!X62,البيانات!C:C,0))","v":"00:00:00"},{"$f":"INDIRECT(\"البيانات!H\"&MATCH(التقرير!X62,البيانات!C:C,0))","v":"00:00:00"},"5_6"]
[null,null,null,null,null,null,null,null,null,null,null,null,null,null,{"$f":"P63&INDEX(البيانات!E:E,MATCH(R63,البيانات!$C:$C,0),1)","v":{"$error":"#NUM!"}},{"$error":"#NUM!"},{"$error":"#NUM!"},{"$error":"#NUM!"},{"$error":"#NUM!"},{"$f":"IF(U63<>\"\",COUNTIF($U$5:U63,U63),\"\")","v":""},"",{"$f":"INDIRECT(\"البيانات!i\"&MATCH(التقرير!X63,البيانات!C:C,0))","v":{"$error":"#N/A"}},{"$f":"INDIRECT(\"البيانات!H\"&MATCH(التقرير!X63,البيانات!C:C,0))","v":{"$error":"#N/A"}}]
[null,null,null,null,null,null,null,null,null,null,null,null,null,null,{"$f":"P64&INDEX(البيانات!E:E,MATCH(R64,البيانات!$C:$C,0),1)","v":{"$error":"#NUM!"}},{"$error":"#NUM!"},{"$error":"#NUM!"},{"$error":"#NUM!"},{"$error":"#NUM!"},{"$f":"IF(U64<>\"\",COUNTIF($U$5:U64,U64),\"\")","v":""},"",{"$f":"INDIRECT(\"البيانات!i\"&MATCH(التقرير!X64,البيانات!C:C,0))","v":"2019-09-30"},{"$f":"INDIRECT(\"البيانات!H\"&MATCH(التقرير!X64,البيانات!C:C,0))","v":"2019-09-22"},"6_1"]
[null,null,null,null,null,null,null,null,null,null,null,null,null,null,{"$f":"P65&INDEX(البيانات!E:E,MATCH(R65,البيانات!$C:$C,0),1)","v":{"$error":"#NUM!"}},{"$error":"#NUM!"},{"$error":"#NUM!"},{"$error":"#NUM!"},{"$error":"#NUM!"},{"$f":"IF(U65<>\"\",COUNTIF($U$5:U65,U65),\"\")","v":14},true,{"$f":"INDIRECT(\"البيانات!i\"&MATCH(التقرير!X65,البيانات!C:C,0))","v":"2019-09-23"},{"$f":"INDIRECT(\"البيانات!H\"&MATCH(التقرير!X65,البيانات!C:C,0))","v":"2019-09-13"},"6_2"]
[null,null,null,null,null,null,null,null,null,null,null,null,null,null,{"$f":"P66&INDEX(البيانات!E:E,MATCH(R66,البيانات!$C:$C,0),1)","v":{"$error":"#NUM!"}},{"$error":"#NUM!"},{"$error":"#NUM!"},{"$error":"#NUM!"},{"$error":"#NUM!"},{"$f":"IF(U66<>\"\",COUNTIF($U$5:U66,U66),\"\")","v":""},"",{"$f":"INDIRECT(\"البيانات!i\"&MATCH(التقرير!X66,البيانات!C:C,0))","v":{"$error":"#N/A"}},{"$f":"INDIRECT(\"البيانات!H\"&MATCH(التقرير!X66,البيانات!C:C,0))","v":{"$error":"#N/A"}}]